bitfinex-derivatives/quotes_ETHF0:USTF0_20250110
["timestamp","ask_amount","ask_price","bid_price","bid_amount"]
[1736534625567,0.74975,3287.6,3287.5,0.30416]
[1736534625863,0.4456,3287.6,3287.5,0.30416]
[1736534626865,0.74975,3287.6,3287.5,0.30416]
[1736534627467,0.4456,3287.6,3287.1,3.662]
[1736534627665,0.74976,3287.6,3287.5,0.30416]
[1736534627859,0.30417,3287.5,3287.4,0.30417]
[1736534628066,0.30418,3287.3,3287.2,0.30418]
[1736534628668,0.4456,3287.6,3287.3,0.30417]
[1736534628865,0.30417,3287.4,3287.3,0.30417]
[1736534629868,0.30419,3287.2,3287.1,3.512]
[1736534630065,0.30419,3287.3,3287.2,0.30418]
[1736534630869,2.79797274,3287.6,3287.1,3.2078]
[1736534631064,2.79797274,3287.6,3286.7,3.2078]
[1736534631065,0.30423,3286.8,3286.7,3.2078]
[1736534631772,0.30424,3286.7,3286.6,0.30424]
[1736534632172,0.30423,3286.9,3286.8,0.30422]
[1736534632874,0.30424,3286.8,3286.7,0.30423]
[1736534633575,3.55838274,3287.6,3286.7,3.2078]
[1736534633880,0.3042,3287.2,3287.1,0.30419]
[1736534634372,0.4429,3287.5,3286.7,3.2078]
[1736534634975,0.30419,3287.3,3287.2,0.30418]
[1736534635572,0.3042,3287.2,3287.1,0.3042]
[1736534636176,0.30418,3287.4,3287.3,0.30417]
[1736534636568,0.3042,3287.2,3287.1,0.30419]
[1736534637274,0.30418,3287.4,3287.3,0.30417]
[1736534637475,0.30418,3287.4,3287.0,0.30421]
[1736534637774,0.4429,3287.5,3287.0,0.30421]
[1736534637775,0.30421,3287.1,3287.0,0.3042]
[1736534637976,0.30419,3287.2,3287.1,0.30419]
[1736534638373,0.4429,3287.5,3286.8,0.4606]
[1736534638576,0.30418,3287.4,3287.3,0.30417]
[1736534638776,0.4429,3287.5,3286.8,0.4606]
[1736534639374,0.30419,3287.3,3287.2,0.30418]
[1736534639772,0.30418,3287.4,3287.3,0.30417]
[1736534640469,0.74976,3287.6,3287.5,0.30416]
[1736534641074,0.30416,3287.5,3287.4,0.4727]
[1736534641269,0.3042,3287.3,3286.9,3.2078]
[1736534641479,0.3042,3287.3,3287.2,0.30418]
[1736534641873,0.4568,3287.4,3286.9,3.6805]
[1736534642279,0.30421,3287.0,3286.9,3.98471]
[1736534642775,0.3042,3287.1,3287.0,0.30419]
[1736534645175,0.30421,3287.0,3286.9,3.2078]
[1736534645375,0.30421,3287.0,3286.9,3.51202]
[1736534645978,3.6646,3287.4,3286.9,3.2078]
[1736534646184,3.51198,3287.4,3287.3,0.30418]
[1736534646571,0.74976,3287.6,3287.5,0.30416]
[1736534646774,3.96805,3288.3,3287.4,0.4601]
[1736534646775,0.4484,3288.1,3287.4,0.4601]
[1736534647082,0.30413,3288.0,3287.9,0.30412]
[1736534647778,0.3041,3288.2,3288.1,0.30411]
[1736534647973,0.3041,3288.2,3287.7,0.76037]
[1736534647974,0.3041,3288.3,3288.2,0.30409]
[1736534648177,3.2078,3288.5,3287.8,3.2078]
[1736534648375,3.2078,3288.5,3288.0,0.30411]
[1736534648376,0.30408,3288.4,3288.0,0.30411]
[1736534648675,3.2078,3288.5,3287.9,40.8]
[1736534648876,0.30411,3288.1,3288.0,0.30411]
[1736534649577,3.2078,3288.5,3288.0,0.30412]
[1736534649775,0.30411,3288.1,3288.0,0.30412]
[1736534650877,3.2078,3288.5,3287.9,40.8]
[1736534651279,0.30411,3288.1,3288.0,0.30411]
[1736534651473,3.2078,3288.5,3288.1,0.3041]
[1736534651678,3.2078,3288.5,3287.9,43.15237274]
[1736534652382,3.51188,3288.5,3288.4,0.30408]
[1736534653778,0.8897,3288.7,3287.9,43.15237274]
[1736534653975,0.30407,3288.6,3288.5,0.30407]
[1736534654174,0.4557,3288.7,3288.3,3.2078]
[1736534654478,0.30405,3288.8,3288.7,0.30405]
[1736534654884,0.30406,3288.6,3288.5,0.30406]
[1736534655288,0.30405,3288.7,3288.6,0.30406]
[1736534655581,0.30405,3288.7,3288.3,3.2078]
[1736534655582,0.30408,3288.4,3288.3,3.2078]
[1736534655779,0.30408,3288.4,3288.3,3.51189]
[1736534656184,0.4467,3288.7,3288.3,3.2078]
[1736534656387,0.30411,3288.4,3288.3,3.2078]
[1736534657483,0.30413,3288.2,3287.9,40.8]
[1736534657676,0.30415,3288.0,3287.9,40.8]
[1736534657880,0.30415,3288.0,3287.7,0.9226]
[1736534657881,3.2078,3288.1,3287.7,0.4698]
[1736534658079,3.2078,3288.1,3287.0,2.35237274]
[1736534658080,2.35237274,3287.9,3287.0,3.2078]
[1736534658282,0.76037,3288.0,3287.5,0.30419]
[1736534658283,0.30419,3287.6,3287.5,0.30419]
[1736534658478,0.30419,3287.6,3287.5,41.10419]
[1736534658889,0.30418,3287.6,3287.5,41.10419]
[1736534662690,0.30418,3287.6,3287.5,40.8]
[1736534662887,3.2078,3287.6,3287.1,0.4698]
[1736534663092,0.30422,3287.2,3287.1,0.77402]
[1736534663589,0.30422,3287.2,3287.1,41.57402]
[1736534663994,0.30422,3287.2,3287.1,41.10423]
[1736534665695,0.27542,3287.2,3287.1,41.10423]
[1736534665995,0.24662,3287.2,3287.1,41.10423]
[1736534666190,0.4704,3287.4,3287.3,0.30421]
[1736534666391,0.7746,3287.4,3287.3,0.30421]
[1736534667594,0.30422,3287.3,3287.1,40.8]
[1736534667798,0.4704,3287.4,3287.1,40.8]
[1736534667799,0.30422,3287.2,3287.1,40.8]
[1736534668197,0.30422,3287.2,3286.7,0.30426]
[1736534668198,0.30427,3286.8,3286.7,0.30426]
[1736534668585,0.30424,3287.0,3286.7,41.10427]
[1736534668790,0.30426,3286.8,3286.7,40.8]
[1736534669097,3.51206,3286.8,3286.7,40.8]
[1736534669296,0.30431,3286.2,3286.1,0.30432]
[1736534669692,0.30431,3286.2,3286.1,40.8]
[1736534670084,3.2078,3286.3,3285.4,0.74818]
[1736534670395,0.30439,3285.4,3285.3,3.51219]
[1736534670590,2.35237274,3285.9,3285.3,3.51219]
[1736534670591,0.30438,3285.5,3285.4,0.30438]
[1736534671186,0.30438,3285.6,3285.5,0.30437]
[1736534671595,0.30438,3285.5,3285.4,0.30438]
[1736534672794,6.48287274,3285.9,3285.3,40.8]
[1736534672996,0.30438,3285.5,3285.4,0.30438]
[1736534673195,6.48287274,3285.9,3284.9,3.71627274]
[1736534673591,0.30437,3285.6,3285.5,0.30437]
[1736534673791,4.1305,3285.9,3285.5,0.30437]
[1736534673792,4.1305,3285.9,3285.5,40.8]
[1736534673997,3.2078,3285.9,3285.5,43.15237274]
[1736534674191,3.2078,3285.9,3285.8,0.30435]
[1736534675099,0.30432,3286.2,3286.1,0.30432]
[1736534675398,4.1593,3286.6,3285.7,3.2078]
[1736534675597,0.30431,3286.3,3286.2,0.30431]
[1736534675793,0.30429,3286.5,3286.4,0.30429]
[1736534676099,0.30429,3286.5,3286.2,40.8]
[1736534676100,4.1593,3286.6,3286.2,40.8]
[1736534676301,0.30429,3286.5,3286.4,0.30429]
[1736534677100,0.3043,3286.4,3286.3,0.3043]
[1736534678298,4.46359,3286.6,3286.5,0.30429]
[1736534678505,0.30429,3286.5,3286.4,0.30429]
[1736534679004,4.1593,3286.6,3286.2,40.8]
[1736534679302,4.1593,3286.6,3286.5,0.30429]
[1736534679303,3.2078,3286.6,3286.5,0.30429]
[1736534679603,3.51208,3286.6,3286.5,0.30429]
[1736534680099,3.51208,3286.6,3286.2,40.8]
[1736534680100,0.30429,3286.5,3286.4,0.30429]
[1736534680701,3.2078,3286.6,3286.2,40.8]
[1736534680901,3.2078,3286.6,3286.5,0.30429]
[1736534682002,3.51208,3286.6,3286.5,0.30429]
[1736534682706,3.2078,3286.6,3286.5,0.30429]
[1736534683306,12.1562301,3287.0,3286.4,2.35237274]
[1736534683504,11.7209301,3287.0,3286.9,0.30425]
[1736534683708,12.0251701,3287.0,3286.9,0.30425]
[1736534684103,11.7209301,3287.0,3286.9,0.30425]
[1736534684312,3.51204,3287.1,3287.0,0.30424]
[1736534684504,0.4648,3287.2,3286.7,3.2078]
[1736534684713,0.4648,3287.2,3287.1,0.30423]
[1736534685011,0.76902,3287.2,3287.1,0.30423]
[1736534685808,0.76902,3287.2,3287.1,41.10423]
[1736534686306,0.30422,3287.3,3287.1,40.8]
[1736534686611,0.75691,3287.4,3287.3,0.30421]
[1736534687301,0.4527,3287.4,3287.3,0.30421]
[1736534687500,0.76041,3287.9,3287.7,0.30416]
[1736534687501,0.30417,3287.8,3287.7,0.30416]
[1736534688206,0.30418,3287.7,3287.6,0.30418]
[1736534688405,0.30418,3287.7,3287.2,1.21124]
[1736534688406,0.3042,3287.6,3287.5,0.30418]
[1736534689001,0.30418,3287.7,3287.6,0.30417]
[1736534689505,3.2078,3287.9,3287.6,0.30417]
[1736534689709,0.30417,3287.8,3287.7,0.30416]
[1736534690101,0.30419,3287.6,3287.5,0.30419]
[1736534692712,0.30418,3287.7,3287.6,0.30417]
[1736534693313,3.2078,3287.9,3287.2,0.4507]
[1736534693612,0.30422,3287.2,3287.1,41.10422]
[1736534693811,0.30422,3287.2,3287.1,0.30422]
[1736534695017,0.30422,3287.3,3287.2,0.30421]
[1736534695511,0.30422,3287.3,3286.9,40.8]
[1736534695512,0.30424,3287.0,3286.9,41.10423]
[1736534698013,0.30423,3287.1,3287.0,0.30422]
[1736534699823,3.51201,3287.3,3287.2,0.30422]
[1736534700528,3.2078,3287.3,3287.2,0.30422]
[1736534700722,0.30421,3287.3,3287.2,0.30422]
[1736534700927,0.4352,3287.4,3287.3,0.30421]
[1736534701331,0.7394,3287.4,3287.3,0.30421]
[1736534701629,0.7394,3287.4,3287.0,0.30423]
[1736534701630,0.30424,3287.1,3287.0,0.30423]
[1736534701826,0.30424,3287.0,3286.9,40.8]
[1736534702022,5.86441274,3287.0,3286.9,40.8]
[1736534702228,0.3043,3286.4,3286.3,0.3043]
[1736534702425,0.30432,3286.2,3286.1,0.30431]
[1736534702630,3.96851,3286.6,3286.2,0.30431]
[1736534702631,0.75791,3286.3,3286.2,0.30431]
[1736534702831,0.73756,3286.8,3286.2,0.76078]
[1736534703024,0.73757,3286.8,3286.7,0.30427]
[1736534703323,0.4333,3286.8,3286.7,0.30427]
[1736534703530,3.2078,3287.0,3286.9,0.30425]
[1736534703922,3.2078,3287.0,3286.6,0.76068]
[1736534703923,1.69223,3287.2,3286.7,4.43625]
[1736534704124,0.4664,3287.4,3286.7,4.43625]
[1736534704323,0.30422,3287.3,3287.2,0.30421]
[1736534704536,0.77061,3287.4,3287.3,0.30421]
[1736534705325,0.30422,3287.3,3287.2,0.30421]
[1736534706222,0.77061,3287.4,3287.3,0.30421]
[1736534709436,0.4664,3287.4,3287.3,0.30421]
[1736534710026,3.54609274,3287.8,3286.9,41.56061]
[1736534710027,0.3042,3287.5,3286.9,43.91298274]
[1736534710231,1.19372,3287.8,3287.6,0.30418]
[1736534710232,0.4386,3287.7,3287.6,0.30418]
[1736534710530,0.3042,3287.5,3287.4,0.30419]
[1736534710733,0.4386,3287.7,3287.0,0.4621]
[1736534710933,0.30422,3287.3,3287.2,0.30421]
[1736534712137,0.30421,3287.5,3287.4,0.30419]
[1736534712641,0.30421,3287.4,3287.3,0.3042]
[1736534712836,0.4386,3287.7,3287.0,0.4621]
[1736534713035,0.30419,3287.6,3287.5,0.30418]
[1736534715435,0.4386,3287.7,3287.2,0.76054]
[1736534715635,0.4333,3287.8,3287.7,0.30417]
[1736534716041,3.2078,3287.9,3287.4,0.76049]
[1736534716242,3.2078,3287.9,3287.8,0.30416]
[1736534716449,0.4586,3288.2,3288.1,0.30414]
[1736534716841,0.76273,3288.2,3288.1,41.10414]
[1736534717035,0.4586,3288.2,3288.1,41.10414]
[1736534718140,0.3041,3288.5,3288.4,0.3041]
[1736534718447,4.89789,3288.8,3288.7,0.30408]
[1736534719445,4.5938,3288.8,3288.2,0.4728]
[1736534719642,0.30413,3288.3,3288.2,0.30413]
[1736534720649,0.30412,3288.4,3288.3,0.30411]
[1736534720939,0.30413,3288.3,3287.9,4.42469]
[1736534721139,0.30413,3288.3,3288.2,0.30412]
[1736534722042,0.30411,3288.5,3288.4,0.3041]
[1736534722341,0.30411,3288.5,3288.0,0.76037]
[1736534722342,0.30408,3288.8,3288.7,0.30407]
[1736534722644,0.9324,3288.9,3288.8,0.30407]
[1736534722645,0.4586,3288.9,3288.8,0.30407]
[1736534722844,0.4706,3289.3,3288.5,0.76026]
[1736534723045,0.4706,3289.3,3288.3,5.56017274]
[1736534723046,3.2078,3289.0,3288.3,3.2078]
[1736534723450,0.4342,3288.9,3288.0,2.35237274]
[1736534723644,0.30412,3288.4,3288.3,0.30411]
[1736534723845,0.4342,3288.9,3287.9,4.126]
[1736534724047,0.30412,3288.4,3288.3,0.30411]
[1736534724248,0.4342,3288.9,3287.9,4.126]
[1736534724249,0.76025,3288.6,3287.9,3.6643]
[1736534724443,0.30414,3288.1,3288.0,0.30413]
[1736534725045,0.9279,3288.3,3287.8,40.8]
[1736534725246,0.30415,3288.0,3287.9,0.30415]
[1736534728751,0.73833,3288.2,3288.1,0.30414]
[1736534729053,0.30415,3288.1,3288.0,0.30414]
[1736534729255,0.30416,3287.9,3287.8,40.8]
[1736534729951,0.30416,3287.9,3287.2,3.2078]
[1736534729952,0.76041,3287.9,3287.2,3.2078]
[1736534730153,0.30424,3287.1,3287.0,0.30423]
[1736534730457,0.30424,3287.1,3287.0,41.10423]
[1736534730956,0.30423,3287.2,3287.1,0.30422]
[1736534731456,0.30423,3287.2,3287.0,40.8]
[1736534731457,0.30423,3287.1,3287.0,40.8]
[1736534732249,0.78353,3287.1,3287.0,40.8]
[1736534734750,0.30423,3287.1,3287.0,41.10424]
[1736534735153,0.30422,3287.2,3287.1,0.30422]
[1736534735354,3.2078,3287.3,3287.0,40.8]
[1736534735554,3.51202,3287.3,3287.2,0.30422]
[1736534736759,3.2078,3287.3,3287.2,0.30422]
[1736534737066,3.2078,3287.7,3287.5,0.30419]
[1736534737272,3.2078,3287.7,3287.3,0.4701]
[1736534737458,3.51198,3287.7,3287.6,0.30418]
[1736534737660,3.51198,3287.7,3287.3,0.4701]
[1736534737661,3.2078,3287.7,3287.3,0.4701]
[1736534737957,3.51197,3287.7,3287.6,40.8]
[1736534738159,3.51197,3287.7,3287.6,41.10418]
[1736534738954,3.2078,3287.7,3287.6,41.10418]
[1736534739358,3.51197,3287.7,3287.6,41.10418]
[1736534739862,3.2078,3287.7,3287.6,41.10418]
[1736534740061,0.30415,3288.1,3288.0,0.30414]
[1736534740262,3.2078,3288.3,3287.7,1.19833]
[1736534740564,0.30416,3288.0,3287.9,0.30415]
[1736534741154,0.30416,3288.0,3287.7,0.4379]
[1736534741155,0.30414,3288.1,3288.0,0.30414]
[1736534741869,0.30413,3288.2,3288.1,0.30413]
[1736534742166,0.30415,3288.0,3287.9,0.30414]
[1736534744670,0.4354,3288.4,3287.7,3.6457]
[1736534744863,0.30414,3288.1,3288.0,0.30413]
[1736534746972,0.30413,3288.3,3288.2,0.30412]
[1736534748765,0.73951,3288.4,3288.3,0.30412]
[1736534748968,3.2078,3288.6,3288.5,0.3041]
[1736534749163,0.4429,3288.6,3288.5,0.3041]
[1736534749367,14.4030475,3289.1,3288.2,3.96811]
[1736534749368,0.4686,3288.9,3288.2,5.56017274]
[1736534749566,0.4686,3288.9,3288.8,0.30407]
[1736534749972,0.4686,3288.9,3288.8,41.10407]
[1736534750166,0.4429,3289.2,3288.8,40.8]
[1736534750367,0.74694,3289.2,3289.1,0.30404]
[1736534750569,3.6864,3289.4,3288.9,0.4731]
[1736534751071,0.30404,3289.2,3288.9,0.4731]
[1736534751270,0.30404,3289.2,3289.1,0.30404]
[1736534752273,0.30403,3289.3,3289.2,0.30403]
[1736534752973,0.30405,3289.1,3289.0,0.30405]
[1736534753475,0.30404,3289.2,3289.1,0.30403]
[1736534754376,0.30405,3289.1,3289.0,0.30404]
[1736534754574,0.30404,3289.2,3289.1,0.30403]
[1736534754769,0.4429,3289.6,3289.0,3.2078]
[1736534754966,3.2078,3289.8,3289.0,3.2078]
[1736534754967,3.2078,3289.8,3289.1,2.35237274]
[1736534755174,3.2078,3289.8,3289.7,0.30399]
[1736534755869,3.2078,3289.8,3289.7,41.10399]
[1736534756070,1.3696,3290.5,3289.7,40.8]
[1736534756071,5.56017274,3290.4,3289.7,40.8]
[1736534756373,1.3696,3290.5,3289.3,0.30402]
[1736534756374,2.35237274,3289.8,3289.3,0.30402]
[1736534756574,0.9044,3289.7,3289.0,3.6588]
[1736534756777,1.3557,3289.7,3289.0,3.2078]
[1736534756974,0.30404,3289.2,3289.1,0.30404]
[1736534757367,0.30404,3289.1,3289.0,3.51185]
[1736534757569,0.30404,3289.1,3289.0,3.2078]
[1736534757768,2.2874,3289.7,3289.0,3.2078]
[1736534757968,2.2874,3289.7,3289.6,0.304]
[1736534757969,2.59139,3289.7,3289.6,0.304]
[1736534758179,2.2874,3289.7,3289.6,0.304]
[1736534759272,2.59139,3289.7,3289.6,0.304]
[1736534759479,0.30397,3289.9,3289.8,0.30398]
[1736534759684,0.30398,3289.8,3289.7,0.30398]
[1736534760275,0.4558,3290.1,3289.3,0.9089]
[1736534760484,0.4558,3290.1,3289.9,0.30397]
[1736534760679,0.30397,3289.9,3289.8,0.30397]
[1736534761378,3.51177,3290.0,3289.9,0.30397]
[1736534761572,3.2078,3290.0,3289.9,0.30397]
[1736534762083,3.2078,3290.0,3289.9,1.22527]
[1736534762268,3.2078,3290.0,3289.8,40.8]
[1736534762477,0.77327,3289.9,3289.8,40.8]
[1736534762668,0.77327,3289.9,3289.1,2.35237274]
[1736534762669,0.4693,3289.9,3289.1,2.35237274]
[1736534762876,0.30404,3289.2,3289.1,0.30404]
[1736534763077,0.75998,3289.7,3289.1,0.30404]
[1736534763078,0.4693,3289.9,3289.1,40.8]
[1736534763386,0.4693,3289.9,3289.1,44.4878]
[1736534763677,0.30404,3289.2,3289.1,3.2078]
[1736534763882,0.30404,3289.2,3289.1,0.30404]
[1736534764075,0.30404,3289.1,3289.0,0.78275]
[1736534764279,0.76014,3289.0,3288.3,3.6504]
[1736534764481,0.76014,3289.0,3288.7,0.30408]
[1736534764482,0.30408,3288.8,3288.7,0.30408]
[1736534764877,0.30411,3288.4,3288.3,3.51191]
[1736534765082,0.30411,3288.4,3288.3,0.30412]
[1736534765278,1e-05,3288.4,3288.3,0.30412]
[1736534765692,0.30408,3288.7,3288.6,0.30408]
[1736534765878,0.4766,3288.8,3288.7,0.30408]
[1736534766078,0.4693,3289.0,3288.9,0.30406]
[1736534766573,0.30408,3288.9,3288.8,0.30407]
[1736534767182,3.2078,3289.3,3288.8,2.35237274]
[1736534767385,3.2078,3289.3,3288.6,3.2078]
[1736534767386,0.4766,3289.5,3289.2,3.2078]
[1736534767589,0.4766,3289.5,3289.4,0.30402]
[1736534767787,0.74659,3289.7,3289.6,0.304]
[1736534768686,0.4426,3289.7,3289.4,40.8]
[1736534768885,0.30401,3289.5,3289.4,40.8]
[1736534770082,0.30401,3289.5,3289.4,41.10402]
[1736534770981,0.30401,3289.5,3288.8,5.56017274]
[1736534770982,2.35237274,3289.6,3288.8,3.2078]
[1736534771286,0.30406,3289.0,3288.9,0.30405]
[1736534771582,0.30408,3288.8,3288.7,0.30407]
[1736534771887,0.7601,3289.2,3288.5,0.30409]
[1736534771888,0.4553,3288.9,3288.5,0.30409]
[1736534772086,0.4553,3288.9,3288.6,41.10409]
[1736534772087,0.30408,3288.7,3288.6,41.10409]
[1736534772381,0.75937,3288.9,3288.8,0.30407]
[1736534772587,0.4553,3288.9,3288.6,40.8]
[1736534772786,0.30408,3288.7,3288.6,41.10408]
[1736534772983,0.30408,3288.7,3288.6,40.8]
[1736534776289,3.51188,3288.7,3288.6,40.8]
[1736534777490,3.51188,3288.7,3288.6,41.10409]
[1736534777888,3.2078,3288.7,3288.6,41.10409]
[1736534779588,3.51188,3288.7,3288.6,40.8]
[1736534779883,3.2078,3288.7,3288.6,41.10409]
[1736534780379,0.30408,3288.8,3288.6,41.10409]
[1736534780380,0.30408,3288.8,3288.7,0.30408]
[1736534781585,0.30408,3288.7,3288.6,41.10409]
[1736534781992,0.30408,3288.8,3288.7,0.30407]
[1736534783287,0.30408,3288.7,3288.6,40.8]
[1736534783486,1.21728,3288.7,3288.6,40.8]
[1736534787194,1.21728,3288.7,3287.9,3.2078]
[1736534787195,0.30416,3288.0,3287.9,3.2078]
[1736534787493,0.76027,3288.3,3287.9,3.51196]
[1736534787692,0.76027,3288.3,3288.0,40.8]
[1736534787883,0.30414,3288.1,3288.0,40.8]
[1736534788489,0.30419,3287.5,3287.3,0.3042]
[1736534788688,3.2078,3287.6,3286.9,3.2078]
[1736534788891,3.2078,3287.6,3287.0,40.8]
[1736534789093,1.4081,3288.0,3287.3,5.56017274]
[1736534789293,0.9459,3288.0,3287.3,5.56017274]
[1736534789593,3.2078,3288.1,3288.0,0.30415]
[1736534789796,3.5119,3288.6,3288.5,0.3041]
[1736534789995,3.2078,3288.6,3288.5,0.3041]
[1736534790294,3.51189,3288.6,3288.5,41.1041]
[1736534790496,3.2078,3288.6,3288.5,41.1041]
[1736534790686,0.30407,3288.9,3288.8,0.30406]
[1736534790891,3.2078,3289.0,3288.5,40.8]
[1736534790892,3.2078,3289.0,3288.9,0.30406]
[1736534791498,0.30405,3289.1,3289.0,0.30405]
[1736534791694,3.2078,3289.5,3288.7,3.6416]
[1736534791896,0.30402,3289.4,3289.3,0.30402]
[1736534792994,3.2078,3289.5,3289.4,0.30402]
[1736534793190,0.30397,3289.9,3289.8,0.30398]
[1736534793389,3.6765,3290.2,3289.1,5.56017274]
[1736534793596,3.6765,3290.2,3289.7,0.30398]
[1736534793796,0.30398,3289.8,3289.7,0.30398]
[1736534794103,0.30398,3289.8,3289.6,0.30399]
[1736534794306,0.30398,3289.9,3289.7,0.30399]
[1736534794603,0.30398,3289.9,3289.8,0.30398]
[1736534795202,0.30398,3289.9,3289.2,41.5601]
[1736534795203,0.30395,3290.1,3289.9,0.30396]
[1736534795702,0.30396,3290.0,3289.9,0.30396]
[1736534795891,0.30397,3289.9,3289.8,0.30397]
[1736534796092,0.30397,3290.0,3289.9,0.30397]
[1736534796303,3.6765,3290.2,3290.1,0.30395]
[1736534796505,0.30392,3290.5,3290.4,0.30392]
[1736534796804,3.2078,3290.6,3290.5,0.30392]
[1736534796997,3.2078,3290.6,3290.5,40.8]
[1736534797203,0.30391,3290.6,3290.5,40.8]
[1736534797402,0.30389,3290.8,3290.6,0.3039]
[1736534797604,0.30389,3290.9,3290.7,0.3039]
[1736534797900,0.30391,3290.6,3290.5,40.8]
[1736534798099,3.51171,3290.6,3290.5,40.8]
[1736534798402,0.30393,3290.4,3290.2,0.30394]
[1736534798700,0.30393,3290.4,3290.3,40.8]
[1736534798902,0.30394,3290.3,3290.1,0.30395]
[1736534799202,0.30393,3290.4,3290.1,0.30395]
[1736534799405,0.30393,3290.4,3290.2,0.30394]
[1736534799800,0.30393,3290.4,3290.2,41.10394]
[1736534800002,0.4441,3290.5,3290.2,40.8]
[1736534800301,0.4441,3290.5,3289.4,0.4328]
[1736534800302,0.30401,3289.5,3289.4,0.4328]
[1736534800492,0.30401,3289.5,3288.7,3.2078]
[1736534800493,0.30403,3289.3,3289.1,0.30404]
[1736534800695,3.2078,3289.6,3288.8,0.9115]
[1736534800696,0.30403,3289.4,3288.8,0.9115]
[1736534800898,3.6519,3289.6,3289.2,0.30403]
[1736534801100,0.30402,3289.4,3289.2,0.30403]
[1736534801597,0.30402,3289.4,3287.8,1.52081]
[1736534801598,2.35237274,3289.4,3288.1,6.32052274]
[1736534801806,0.30407,3288.9,3288.8,0.30407]
[1736534802407,0.30407,3288.8,3288.2,0.76033]
[1736534802607,0.30407,3288.8,3288.7,0.30408]
[1736534802906,0.30407,3288.9,3288.8,0.30407]
[1736534803106,0.30407,3288.8,3288.7,0.30408]
[1736534803304,0.30407,3288.8,3288.2,0.76033]
[1736534803305,3.2078,3289.2,3288.2,0.76033]
[1736534803607,3.2078,3289.2,3288.4,2.35237274]
[1736534803904,3.2078,3289.2,3288.2,0.76033]
[1736534804204,0.30407,3288.9,3288.2,0.76033]
[1736534804406,0.30407,3288.9,3288.8,0.30407]
[1736534804606,0.30406,3289.0,3288.8,0.30407]
[1736534805001,0.30406,3289.0,3288.2,0.76033]
[1736534805307,0.30406,3289.0,3288.9,0.30406]
[1736534805700,0.30405,3289.1,3288.9,41.10406]
[1736534805899,0.30405,3289.0,3288.9,41.10406]
[1736534806300,0.30405,3289.1,3289.0,0.30405]
[1736534806506,0.30404,3289.2,3289.1,0.30404]
[1736534806904,0.30403,3289.3,3289.2,0.30403]
[1736534807100,3.6519,3289.6,3288.9,40.8]
[1736534807305,0.30402,3289.4,3289.3,0.30402]
[1736534807603,0.30403,3289.3,3289.2,0.30403]
[1736534808002,3.6519,3289.6,3289.0,0.30405]
[1736534808003,0.30404,3289.2,3289.0,0.30405]
[1736534808308,0.30405,3289.0,3288.9,41.10406]
[1736534808506,0.30405,3289.0,3288.9,40.8]
[1736534808903,0.78215,3289.0,3288.9,40.8]
[1736534809207,0.78215,3289.0,3288.1,3.2078]
[1736534809208,0.30413,3288.2,3288.1,3.2078]
[1736534809505,5.56017274,3288.5,3287.7,0.4505]
[1736534809807,5.56017274,3288.5,3288.1,40.8]
[1736534809808,0.30413,3288.2,3288.1,40.8]
[1736534810004,0.30413,3288.2,3288.1,41.10414]
[1736534811103,0.30412,3288.3,3288.2,0.30413]
[1736534811608,0.4781,3288.4,3288.1,40.8]
[1736534811807,0.30413,3288.2,3288.1,40.8]
[1736534812516,2.35237274,3288.2,3287.2,0.4451]
[1736534812803,0.4781,3288.4,3286.8,3.2078]
[1736534812804,2.35237274,3287.6,3286.8,3.2078]
[1736534813010,0.30422,3287.2,3287.0,0.30423]
[1736534813312,0.30422,3287.3,3287.0,0.30423]
[1736534813612,0.30422,3287.3,3287.0,0.30424]
[1736534813811,0.30421,3287.4,3287.2,0.30422]
[1736534814311,0.9144,3287.5,3287.4,0.3042]
[1736534814312,0.4691,3287.5,3287.4,0.3042]
[1736534814512,0.4691,3287.5,3286.9,40.8]
[1736534814708,0.4691,3287.5,3287.2,0.30421]
[1736534814709,0.3042,3287.4,3287.2,0.30421]
[1736534814910,0.30422,3287.2,3287.0,0.30424]
[1736534815211,0.7733,3287.5,3287.3,0.3042]
[1736534815404,4.5878,3287.8,3286.9,40.8]
[1736534815602,0.30418,3287.7,3287.6,0.30418]
[1736534816713,0.30419,3287.6,3287.5,0.30419]
[1736534817012,0.30418,3287.7,3287.6,0.30418]
[1736534817209,4.5878,3287.8,3287.1,0.9054]
[1736534817405,0.30419,3287.6,3287.5,0.30419]
[1736534817807,0.3042,3287.4,3287.2,0.30422]
[1736534818016,0.30422,3287.2,3287.1,0.74203]
[1736534818316,0.30422,3287.3,3287.2,0.30421]
[1736534818508,0.3042,3287.5,3287.4,0.3042]
[1736534819616,0.30419,3287.6,3287.5,0.30418]
[1736534819913,3.2078,3287.8,3287.2,0.4596]
[1736534820116,0.3042,3287.5,3287.4,0.3042]
[1736534820413,0.3042,3287.5,3287.4,40.8]
[1736534821613,0.3042,3287.5,3287.4,41.1042]
[1736534822814,0.3042,3287.5,3287.4,40.8]
[1736534823720,0.3042,3287.5,3287.4,41.1042]
[1736534824309,0.4775,3287.9,3287.4,40.8]
[1736534824620,0.30418,3287.7,3287.6,0.30418]
[1736534824913,0.4775,3287.9,3287.7,0.30417]
[1736534824914,0.30417,3287.8,3287.7,0.30417]
[1736534825118,3.2078,3288.2,3287.6,5.56017274]
[1736534825416,3.2078,3288.2,3288.1,0.30414]
[1736534825612,3.51193,3288.2,3288.1,0.30414]